fUSD/lending_fUSD_20240719
["ID","MTS","AMOUNT","RATE_DAILY","PERIOD"]
[332641880,1721400645885,-21888.96346288,0.000245,5]
[332641881,1721400645898,-828.46681849,0.000245,5]
[332641882,1721400645912,-437.72050774,0.000245,5]
[332641883,1721400645928,-555.0,0.000245,5]
[332641884,1721400645941,-1795.36741921,0.000245,5]
[332641885,1721400645986,-137068.37148776,0.000245,5]
[332641886,1721400645999,-7652.59031677,0.000245,5]
[332641887,1721400646011,-700.49456201,0.000245,5]
[332641888,1721400646023,-404978.62305368,0.000245,5]
[332641889,1721400646036,-250.98110597,0.000245,5]
[332641890,1721400646049,-1891.29763656,0.000245,5]
[332641891,1721400646059,-258.0,0.000245,2]
[332641892,1721400646070,-9761.09632223,0.000245,2]
[332641910,1721400647097,-1631.90187909,0.000245,2]
[332641911,1721400647109,-1065.55614246,0.000245,2]
[332641912,1721400647121,-2136.19702433,0.000245,2]
[332641913,1721400647134,-303.27437163,0.000245,2]
[332641914,1721400647146,-1650.85084107,0.000245,2]
[332641915,1721400647173,-998.59582988,0.000245,2]
[332641916,1721400647184,-360.08234564,0.000245,2]
[332641917,1721400647195,-3567.11591837,0.000245,2]
[332641939,1721400760708,500.0,0.00014351,2]
[332641940,1721400782571,757.2113,0.00013976,2]
[332641941,1721400845341,24735.52269575,0.00013999,2]
[332641947,1721400880059,1254.12953695,0.00013999,2]
[332641953,1721400927890,-484.35251733,0.00014105,2]
[332641954,1721400927913,-15.64748267,0.00014105,2]
[332641957,1721400969672,-234.35251733,0.00014105,2]
[332641967,1721401123886,198.8,0.00024813,120]
[332641982,1721401363865,265.64748267,0.00014089,2]
[332641986,1721401392386,24745.28176521,0.00013999,2]
[332641998,1721401457823,15451.9318012,0.00013999,2]
[332642034,1721401832039,-1122.085793,0.00014089,2]
[332642035,1721401832049,-4233.3922388,0.0001416,2]
[332642036,1721401832063,-1006.769,0.0001426,2]
[332642037,1721401832072,-5605.08175338,0.00014667,2]
[332642038,1721401832082,-483.92257646,0.00016232,2]
[332642039,1721401832091,-155.82431433,0.00016441,2]
[332642040,1721401832426,-9252.14906276,0.00016441,2]
[332642041,1721401832435,-300.0,0.00016798,2]
[332642042,1721401832445,-843.60563306,0.00016896,2]
[332642043,1721401832455,-957.97321156,0.00016896,2]
[332642044,1721401832465,-1358.04412591,0.00016896,2]
[332642045,1721401832474,-295.20110821,0.00016897,2]
[332642046,1721401832483,-304.83511499,0.00016948,2]
[332642047,1721401832492,-155.17489344,0.00016949,2]
[332642048,1721401832502,-1136.94020699,0.0001695,2]
[332642049,1721401832511,-1273.02067047,0.00016952,2]
[332642050,1721401832521,-499.99,0.00016968,2]
[332642051,1721401832530,-155.46381169,0.00016968,2]
[332642052,1721401832540,-328.66315645,0.00016968,2]
[332642053,1721401832550,-19657.62479191,0.00016968,2]
[332642054,1721401832561,-402.33696321,0.00016968,2]
[332642055,1721401832570,-2498.73739198,0.00017259,2]
[332642056,1721401832580,-481.14,0.00017534,2]
[332642057,1721401832589,-150.99,0.00017534,2]
[332642058,1721401832598,-2284.0,0.000178,3]
[332642059,1721401832607,-299.99,0.000178,4]
[332642060,1721401832618,-800.14,0.000178,2]
[332642061,1721401832629,-420.0,0.00018351,2]
[332642062,1721401832641,-46617.02225142,0.0001887,2]
[332642063,1721401832653,-465.43893877,0.00018999,2]
[332642064,1721401832663,-335.056,0.00019398,2]
[332642065,1721401832674,-441.16,0.00019738,2]
[332642066,1721401832684,-227.43774807,0.00020439,2]
[332642067,1721401832696,-185.875,0.00020489,2]
[332642068,1721401832706,-259.795,0.00020489,2]
[332642069,1721401832715,-261.248,0.00020489,2]
[332642070,1721401832725,-150.235,0.00020489,2]
[332642071,1721401832735,-4464.87684864,0.00020588,2]
[332642072,1721401832744,-1761.75637949,0.0002083,2]
[332642073,1721401832753,-2776.75,0.00020981,2]
[332642074,1721401832763,-1986.28451758,0.00020999,2]
[332642075,1721401832772,-23900.0,0.00021623,2]
[332642076,1721401832782,-157.07,0.00021644,2]
[332642077,1721401832791,-287.51,0.00021644,2]
[332642078,1721401832800,-184.0,0.00021653,2]
[332642079,1721401832809,-250.0,0.00021741,2]
[332642080,1721401832818,-150.0,0.00021824,2]
[332642081,1721401832827,-250.0,0.00021906,2]
[332642082,1721401832837,-193.79,0.00021915,2]
[332642083,1721401832846,-159.95,0.00021918,2]
[332642084,1721401832856,-3896.69,0.00021952,2]
[332642085,1721401832865,-441.16,0.00022002,2]
[332642086,1721401832875,-198.8,0.00022056,2]
[332642087,1721401832884,-151.73,0.00022147,2]
[332642088,1721401832893,-151.73,0.00022202,2]
[332642089,1721401832903,-151.73,0.00022258,2]
[332642090,1721401832912,-151.9202688,0.00022941,2]
[332642091,1721401832922,-151.42136548,0.00023038,2]
[332642092,1721401832932,-152.97309437,0.00023078,2]
[332642093,1721401832943,-152.11679399,0.00023267,2]
[332642094,1721401832955,-151.42136548,0.00023395,2]
[332642095,1721401832967,-2836.27119064,0.00023451,2]
[332642096,1721401832977,-152.31969899,0.00023692,2]
[332642097,1721401832987,-152.97309437,0.00023884,2]
[332642098,1721401832998,-151.42136548,0.00024015,2]
[332642099,1721401833008,-151.42136548,0.00024023,2]
[332642100,1721401833018,-152.38095238,0.000241,2]
[332642101,1721401833027,-384.16164392,0.00024124,2]
[332642102,1721401833036,-521.01211243,0.00024124,2]
[332642103,1721401833045,-3398.95100233,0.00024124,2]
[332642104,1721401833055,-178.70960997,0.0002413,2]
[332642105,1721401833068,-152.97309437,0.00024215,2]
[332642106,1721401833078,-441.16,0.00024266,2]
[332642108,1721401833088,-196.78351633,0.0002427,2]
[332642110,1721401833098,-152.61344492,0.00024277,2]
[332642112,1721401833107,-152.31969899,0.00024278,2]
[332642113,1721401833117,-152.61344492,0.00024293,2]
[332642115,1721401833127,-184.0,0.00024359,2]
[332642117,1721401833136,-503.2131,0.00024378,2]
[332642119,1721401833148,-156.26491682,0.00024383,2]
[332642120,1721401833157,-1714.10176697,0.00024409,2]
[332642123,1721401833166,-1955.37402337,0.00024409,2]
[332642125,1721401833176,-152.61344492,0.00024434,2]
[332642127,1721401833186,-167.10170778,0.00024488,2]
[332642129,1721401833196,-258.0,0.000245,2]
[332642130,1721401833205,-208.05177,0.000245,2]
[332642131,1721401833215,-4644.7873158,0.00024509,2]
[332642132,1721401833225,-13395.9472403,0.00024509,2]
[332642133,1721401833234,-2289.3642167,0.00024509,2]
[332642134,1721401833244,-6904.1154071,0.00024509,2]
[332642135,1721401833253,-14564.654061,0.00024535,2]
[332642136,1721401833264,-3520.8277731,0.00024535,2]
[332642137,1721401833273,-27527.0,0.00024552,2]
[332642138,1721401833283,-173.0,0.0002456,9]
[332642139,1721401833292,-400.0,0.000246,8]
[332642140,1721401833301,-155.37111202,0.00024605,2]
[332642141,1721401833310,-2500.0,0.0002469,2]
[332642142,1721401833319,-7500.0,0.000247,2]
[332642143,1721401833328,-151.8269013,0.000247,2]
[332642144,1721401833337,-222.1227873,0.000247,2]
[332642145,1721401833347,-317.3244557,0.000247,2]
[332642146,1721401833357,-900.0,0.000247,9]
[332642147,1721401833366,-178.70960997,0.00024709,2]
[332642148,1721401833376,-151.42,0.0002479,2]
[332642149,1721401833386,-200.0,0.00024797,2]
[332642150,1721401833395,-200.0,0.00024797,2]
[332642151,1721401833405,-150.0,0.00024798,2]
[332642152,1721401833414,-150.0,0.00024798,2]
[332642153,1721401833423,-150.0,0.00024798,2]
[332642154,1721401833433,-150.0,0.00024798,2]
[332642155,1721401833442,-603.09632527,0.00024799,2]
[332642156,1721401833452,-58605.55171177,0.000248,2]
[332642157,1721401833466,-2605.7965384,0.000248,2]
[332642158,1721401833479,-3380.00047024,0.000248,2]
[332642159,1721401833494,-2427.08945584,0.000248,2]
[332642160,1721401833507,-10454.46023508,0.000248,2]
[332642161,1721401833519,-1256.0721124,0.000248,2]
[332642162,1721401833531,-3510.30484484,0.000248,2]
[332642163,1721401833543,-3545.23594935,0.000248,2]
[332642164,1721401833554,-441.55013377,0.000248,2]
[332642188,1721401838304,-155.0,0.00019725,2]
[332642189,1721401838314,-2382.38683236,0.00023451,2]
[332642190,1721401838325,-7500.0,0.000247,2]
[332642191,1721401838335,-4596.16672226,0.000248,2]
[332642192,1721401838347,-8355.461751,0.000248,2]
[332642193,1721401838360,-5211.07109177,0.000248,2]
[332642194,1721401838371,-490.1733676,0.000248,2]
[332642195,1721401838383,-30961.17217745,0.000248,2]
[332642196,1721401838394,-522.95955266,0.000248,2]
[332642197,1721401838406,-494.27098395,0.000248,2]
[332642198,1721401838421,-41252.74669472,0.000248,2]
[332642199,1721401838432,-630.37381688,0.000248,2]
[332642200,1721401838444,-723828.06996326,0.000248,2]
[332642201,1721401838475,-136521.81600755,0.000248,2]
[332642202,1721401838487,-27792.03891844,0.000248,2]
[332642203,1721401838497,-500.0,0.000248,2]
[332642204,1721401838506,-500.0,0.000248,2]
[332642205,1721401838515,-500.0,0.000248,2]
[332642206,1721401838524,-500.0,0.000248,2]
[332642207,1721401838533,-500.0,0.000248,2]
[332642208,1721401838543,-500.0,0.000248,2]
[332642209,1721401838552,-500.0,0.000248,2]
[332642210,1721401838561,-500.0,0.000248,2]
[332642211,1721401838571,-500.0,0.000248,2]
[332642213,1721401838580,-500.0,0.000248,2]
[332642214,1721401838590,-500.0,0.000248,2]
[332642215,1721401838600,-500.0,0.000248,2]
[332642216,1721401838610,-500.0,0.000248,2]
[332642217,1721401838619,-500.0,0.000248,2]
[332642218,1721401838629,-500.0,0.000248,2]
[332642219,1721401838638,-500.0,0.000248,2]
[332642220,1721401838648,-500.0,0.000248,2]
[332642221,1721401838657,-500.0,0.000248,2]
[332642222,1721401838667,-500.0,0.000248,2]
[332642223,1721401838676,-500.0,0.000248,2]
[332642224,1721401838687,-500.0,0.000248,2]
[332642225,1721401838696,-500.0,0.000248,2]
[332642226,1721401838706,-500.0,0.000248,2]
[332642227,1721401838716,-1400.0,0.000248,9]
[332642228,1721401838726,-152.97309437,0.0002481,2]
[332642229,1721401838735,-24675.27488665,0.00024813,2]
[332642230,1721401838745,-166.66666668,0.00024873,2]
[332642231,1721401838755,-151.42136548,0.00024889,2]
[332642232,1721401838765,-246.13322194,0.00024899,2]
[332642233,1721401838774,-1000.0,0.000249,2]
[332642234,1721401838783,-1900.0,0.000249,9]
[332642235,1721401838793,-809.50753392,0.000249,2]
[332642236,1721401838803,-218.49372438,0.000249,2]
[332642237,1721401838813,-300.81,0.00024904,2]
[332642238,1721401838823,-178.70960997,0.00024921,2]
[332642239,1721401838832,-500.0,0.00024929,2]
[332642240,1721401838842,-785.2536598,0.00024983,2]
[332642241,1721401838851,-5619.0597772,0.00024983,2]
[332642242,1721401838860,-16205.8288566,0.00024983,2]
[332642243,1721401838870,-2769.5723207,0.00024983,2]
[332642244,1721401838879,-8422.763979,0.00024983,2]
[332642245,1721401838889,-12755.17106462,0.00024983,2]
[332642254,1721401840103,-169.58590449,0.00016968,2]
[332642255,1721401840113,-5013.16511718,0.00024983,2]
[332642256,1721401840123,-4295.2789163,0.00024983,2]
[332642257,1721401840133,-151.42,0.0002499,2]
[332642258,1721401840143,-151.42,0.0002499,2]
[332642259,1721401840153,-150.0,0.00024999,10]
[332642260,1721401840162,-150.0,0.00024999,10]
[332642261,1721401840172,-500.0,0.00024999,2]
[332642262,1721401840181,-500.0,0.00024999,2]
[332642263,1721401840191,-166.82225687,0.00024999,2]
[332642264,1721401840201,-500.0,0.00024999,2]
[332642265,1721401840212,-206.35142736,0.00024999,2]
[332642266,1721401840221,-369.63828489,0.00024999,2]
[332642267,1721401840231,-104769.91809296,0.00025,5]
[332642268,1721401840243,-1056.7785687,0.00025,5]
[332642269,1721401840254,-1273.216,0.00025,5]
[332642270,1721401840266,-756.77499305,0.00025,5]
[332642271,1721401840283,-155.0,0.00016968,2]
[332642272,1721401840293,-3108.83671974,0.00025,5]
[332642273,1721401840304,-1681.29120575,0.00025,5]
[332642274,1721401840315,-1468.13829,0.00025,5]
[332642275,1721401840326,-3452.56441741,0.00025,5]
[332642276,1721401840339,-879.53341354,0.00025,5]
[332642388,1721401843251,-25847.785215,0.000248,11]
[332642392,1721401844151,-16249.0836358,0.000248,11]
[332642393,1721401844164,-370.19267968,0.000248,11]
[332642394,1721401844175,-15843.54454845,0.000248,11]
[332642395,1721401844231,-445.0427006,0.000248,11]
[332642396,1721401844243,-79614.14870315,0.000248,11]
[332642397,1721401844252,-757.17452914,0.000249,2]
[332642398,1721401844264,-592.67151,0.00024979,2]
[332642399,1721401844275,-903530.68421189,0.00025,5]
[332642400,1721401844286,-25330.58663,0.00025,5]
[332642401,1721401844298,-39340.14344066,0.00025,5]
[332642402,1721401844310,-385.77745975,0.00025,5]
[332642403,1721401844322,-688.23036863,0.00025,5]
[332642404,1721401844333,-4059.4108066,0.00025,5]
[332642405,1721401844345,-335.05585297,0.00025,5]
[332642419,1721401848385,-2204.74628846,0.00016968,2]
[332642420,1721401848395,-3464.6125656,0.00024535,2]
[332642421,1721401848404,-4226.6984542,0.00024983,2]
[332642422,1721401848414,-121647.54764888,0.00025,5]
[332642423,1721401848607,-93397.91185962,0.00025,5]
[332642424,1721401848621,-5085.17788322,0.00025,5]
[332642426,1721401848753,-6788.23694137,0.00025,5]
[332642427,1721401848765,-1022.2627076,0.00025,5]
[332642485,1721402284092,17498.72439351,0.00013999,2]
[332642494,1721402364377,155.42086569,0.00013999,2]
[332642495,1721402374236,796.79710196,0.00013999,2]
[332642496,1721402376564,957.81,0.00025,120]
[332642497,1721402446483,412.7481654,0.00013999,2]
[332642501,1721402565928,796.42759146,0.00013999,2]
[332642503,1721402708435,6562805.25567556,0.00014,2]
[332642504,1721402729350,11062.20521307,0.000118,2]
[332642506,1721402754110,18781.83717086,0.0001358,2]
[332642507,1721402775223,2836.27119064,0.00013999,2]
[332642508,1721402812734,3398.95100233,0.00013999,2]
[332642509,1721402844306,766.87199241,0.0001305,2]
[332642515,1721402883337,3518.90972402,0.00013,2]
[332642516,1721402890896,3908.35109689,0.0001251,2]
[332642517,1721402894219,20354.6264405,0.00013999,2]
[332642525,1721402916626,7564.9532713,0.0001305,2]
[332642538,1721403024231,1193.08048705,0.0001305,2]
[332642564,1721403032328,-319.07295113,0.00014161,2]
[332642565,1721403032338,-1000.0,0.0001426,2]
[332642566,1721403032348,-1261.89094088,0.00014261,2]
[332642567,1721403032357,-1445.49306909,0.00014519,2]
[332642568,1721403032368,-1137.18026531,0.00014519,2]
[332642569,1721403032377,-1013.7518324,0.00014667,2]
[332642570,1721403032387,-1359.14831069,0.00014667,2]
[332642571,1721403032397,-300.0,0.00014788,2]
[332642572,1721403032406,-835.62734368,0.00014789,2]
[332642573,1721403032415,-835.62734368,0.00014789,2]
[332642574,1721403032424,-652.15802817,0.00014789,2]
[332642575,1721403032434,-155.0,0.00014896,2]
[332642576,1721403032443,-648.77222737,0.00014896,2]
[332642577,1721403032453,-484.35251733,0.00014899,2]
[332642578,1721403032464,-437.69920627,0.00014899,2]
[332642579,1721403032473,-2304.8952,0.000149,2]
[332642580,1721403032483,-531.36487114,0.00014988,2]
[332642581,1721403032493,-346.93601851,0.00014988,2]
[332642582,1721403032502,-270.109062,0.00014988,2]
[332642583,1721403032513,-155.27998251,0.00014988,2]
[332642584,1721403032522,-158.73026104,0.00014988,2]
[332642585,1721403032535,-242.83152267,0.00014988,2]
[332642586,1721403032544,-235.93478657,0.00014988,2]
[332642587,1721403032553,-264.01138041,0.00014988,2]
[332642588,1721403032563,-159.32598087,0.00014999,2]
[332642589,1721403032572,-150.0,0.00014999,2]
[332642590,1721403032581,-164.1062936,0.00014999,2]
[332642591,1721403032591,-352.68124914,0.00014999,2]
[332642592,1721403032600,-155.35162796,0.00014999,2]
[332642593,1721403032609,-150.0,0.00015,2]
[332642594,1721403032619,-38945.50372162,0.00015,2]
[332642595,1721403032629,-203.51494043,0.00015369,2]
[332642596,1721403032638,-390.912,0.00015369,2]
[332642597,1721403032647,-300.0,0.00015369,2]
[332642598,1721403032657,-300.0,0.00015369,2]
[332642599,1721403032666,-175.66694853,0.00015369,2]
[332642600,1721403032675,-7561.94507112,0.00015818,2]
[332642601,1721403032685,-227.43774807,0.0001587,2]
[332642602,1721403032694,-499.99,0.00015897,2]
[332642603,1721403032703,-2918.32,0.00016032,2]
[332642604,1721403032712,-2615.81833308,0.00016033,2]
[332642605,1721403032722,-250.0,0.00016159,2]
[332642606,1721403032731,-266.62300389,0.00016232,2]
[332642607,1721403032740,-370.00600628,0.00016232,2]
[332642608,1721403032750,-299.99,0.00016357,4]
[332642609,1721403032759,-203.19,0.00016357,2]
[332642610,1721403032772,-150.99,0.00016358,2]
[332642611,1721403032781,-1410.10961237,0.00016358,2]
[332642612,1721403032791,-310.0,0.00016358,2]
[332642613,1721403032800,-155.0,0.00016425,2]
[332642614,1721403032809,-254.48154078,0.00016425,2]
[332642615,1721403032818,-155.9907907,0.00016441,2]
[332642616,1721403032827,-191.60133679,0.00016441,2]
[332642617,1721403032837,-1761.75637949,0.00016699,2]
[332642618,1721403032846,-1322.90394428,0.00016799,2]
[332642619,1721403032856,-465.43893877,0.00016855,2]
[332642620,1721403032865,-3398.95100233,0.00016855,2]
[332642621,1721403032875,-155.7343698,0.00016882,2]
[332642622,1721403032883,-155.0,0.00016882,2]
[332642623,1721403032893,-322.53490955,0.00016897,2]
[332642624,1721403032905,-155.82064845,0.00016897,2]
[332642625,1721403032917,-155.0,0.00016897,2]
[332642626,1721403032926,-292.57856873,0.00016949,2]
[332642627,1721403032937,-200.0,0.00017,2]
[332642628,1721403032948,-2493.76163735,0.00017,2]
[332642629,1721403032958,-2247.0,0.000181,3]
[332642630,1721403032967,-1271.727,0.000181,2]
[332642631,1721403032977,-250.0,0.00018221,2]
[332642632,1721403032986,-493.67,0.0001827,2]
[332642633,1721403032995,-250.0,0.00019,2]
[332642634,1721403033005,-245.36,0.00019298,2]
[332642635,1721403033018,-8437.86385551,0.000195,2]
[332642636,1721403033027,-672.0,0.00019554,2]
[332642637,1721403033036,-11491.0,0.000196,5]
[332642638,1721403033046,-250.0,0.00019783,2]
[332642639,1721403033055,-23900.0,0.00019952,2]
[332642640,1721403033065,-9174.75388688,0.00020213,2]
[332642641,1721403033074,-2486.59170905,0.00020389,2]
[332642642,1721403033084,-1837.02211293,0.00020389,2]
[332642643,1721403033093,-2380.0,0.00020489,2]
[332642644,1721403033103,-549.0,0.00020489,2]
[332642645,1721403033113,-1992.0,0.00020489,2]
[332642646,1721403033122,-150.0,0.00020489,2]
[332642647,1721403033132,-3280.0,0.00020489,2]
[332642648,1721403033141,-1072.0,0.00020489,2]
[332642649,1721403033150,-1829.0,0.00020489,2]
[332642650,1721403033160,-361.0,0.00020489,2]
[332642651,1721403033169,-1252.0,0.00020489,2]
[332642652,1721403033179,-5822.0,0.00020489,2]
[332642653,1721403033188,-1661.0,0.00020489,2]
[332642654,1721403033197,-1667.0,0.00020489,2]
[332642655,1721403033206,-493.67,0.00020534,2]
[332642656,1721403033216,-300.0,0.00021,2]
[332642657,1721403033225,-214.37,0.00021425,2]
[332642658,1721403033234,-173.48,0.00021699,2]
[332642659,1721403033244,-2486.59170901,0.00021887,2]
[332642660,1721403033254,-1837.02211287,0.00021887,2]
[332642661,1721403033265,-500.0,0.00021918,5]
[332642662,1721403033275,-158.21011624,0.00021918,2]
[332642663,1721403033285,-158.77086067,0.00021918,2]
[332642664,1721403033295,-158.71073214,0.00021918,2]
[332642665,1721403033305,-153.19813231,0.00021918,2]
[332642666,1721403033635,-672.0,0.00021998,2]
[332642667,1721403033644,-198.26330991,0.00022,2]
[332642668,1721403033654,-200.0,0.00022,2]
[332642669,1721403033663,-155.20564937,0.00022,2]
[332642670,1721403033672,-158.21013859,0.00022,2]
[332642671,1721403033682,-493.67,0.00022798,2]
[332642672,1721403033691,-156.0973475,0.00022869,2]
[332642673,1721403033700,-5104.7324,0.00022934,2]
[332642674,1721403033710,-156.26491682,0.0002296,2]
[332642675,1721403033720,-350.0,0.00023,2]
[332642676,1721403033729,-152.18495313,0.00023009,2]
[332642677,1721403033739,-174.289716,0.00023313,2]
[332642678,1721403033748,-400.0,0.0002337,2]
[332642679,1721403033757,-2486.59170901,0.00023385,2]
[332642680,1721403033768,-1837.02211287,0.00023385,2]
[332642681,1721403033778,-153.22167699,0.00023484,2]
[332642682,1721403033788,-152.319699,0.00023519,2]
[332642683,1721403033797,-151.81260136,0.00023702,2]
[332642684,1721403033807,-152.61344492,0.00023859,2]
[332642685,1721403033816,-152.61344492,0.00023874,2]
[332642686,1721403033827,-152.38095238,0.00023997,2]
[332642687,1721403033836,-11543.9005191,0.00024,2]
[332642688,1721403033845,-173.48,0.00024002,2]
[332642689,1721403033854,-151.42136548,0.00024025,2]
[332642690,1721403033864,-545.37227524,0.0002408,2]
[332642691,1721403033874,-214.37,0.00024103,2]
[332642692,1721403033885,-9136.76595655,0.00024124,2]
[332642693,1721403033895,-152.319699,0.00024149,2]
[332642694,1721403033904,-152.38095238,0.00024409,2]
[332642695,1721403033914,-152.319699,0.00024438,2]
[332642696,1721403033923,-672.0,0.00024442,2]
[332642697,1721403033932,-19989.9634,0.00024452,2]
[332642698,1721403033941,-598.1324,0.00024452,2]
[332642699,1721403033950,-3523.3771,0.00024452,2]
[332642700,1721403033960,-500.0,0.00024469,2]
[332642701,1721403033969,-200.0,0.00024469,2]
[332642702,1721403033979,-160.83864897,0.00024483,2]
[332642703,1721403033988,-166.66666668,0.00024594,2]
[332642704,1721403033997,-152.61344492,0.00024639,2]
[332642705,1721403034007,-153.22167699,0.00024675,2]
[332642706,1721403034018,-151.24439156,0.00024709,2]
[332642707,1721403034028,-1822.39346006,0.00024774,2]
[332642708,1721403034037,-173.0,0.0002478,9]
[332642709,1721403034047,-200.0,0.000248,9]
[332642710,1721403034056,-16543.439311,0.000248,2]
[332642711,1721403034066,-22057.919081,0.0002482,2]
[332642712,1721403034075,-27572.398851,0.0002485,2]
[332642713,1721403034084,-1000.0,0.00024874,2]
[332642714,1721403034093,-1000.0,0.00024874,2]
[332642715,1721403034103,-1000.0,0.00024874,2]
[332642717,1721403034112,-1000.0,0.00024874,2]
[332642719,1721403034121,-1000.0,0.00024874,2]
[332642720,1721403034130,-1000.0,0.00024874,2]
[332642722,1721403034140,-1000.0,0.00024874,2]
[332642724,1721403034150,-1000.0,0.00024874,2]
[332642726,1721403034159,-1000.0,0.00024874,2]
[332642727,1721403034169,-1000.0,0.00024874,2]
[332642729,1721403034178,-33086.878622,0.0002488,2]
[332642732,1721403034188,-2486.59170901,0.00024883,2]
[332642733,1721403034197,-1837.02211287,0.00024883,2]
[332642735,1721403034205,-679.8807,0.0002489,2]
[332642737,1721403034213,-3103.9289,0.0002489,2]
[332642739,1721403034222,-155.0,0.00024899,2]
[332642741,1721403034231,-308.78185671,0.00024899,2]
[332642743,1721403034240,-4467.02483465,0.00024899,2]
[332642745,1721403034249,-244.0372944,0.00024899,2]
[332642747,1721403034258,-169.69497693,0.000249,2]
[332642748,1721403034268,-160.13713916,0.000249,2]
[332642750,1721403034277,-177.69822984,0.000249,2]
[332642752,1721403034286,-500.0,0.000249,9]
[332642753,1721403034296,-312.76351389,0.000249,2]
[332642754,1721403034306,-500.0,0.00024929,2]
[332642755,1721403034315,-500.0,0.00024929,2]
[332642756,1721403034324,-500.0,0.00024929,2]
[332642757,1721403034334,-155.79972659,0.00024979,2]
[332642758,1721403034343,-155.06365496,0.00024979,2]
[332642759,1721403034354,-492.55741441,0.00024989,2]
[332642760,1721403034365,-157.99,0.0002499,2]
[332642761,1721403034375,-157.99,0.0002499,2]
[332642762,1721403034385,-1566.8632051,0.00024994,2]
[332642763,1721403034396,-1629.8107485,0.00024994,2]
[332642764,1721403034405,-7158.1328576,0.00024994,2]
[332642765,1721403034414,-44209.1201994,0.00024994,2]
[332642766,1721403034424,-356.83039399,0.00024996,2]
[332642767,1721403034434,-209.87546738,0.00024998,2]
[332642768,1721403034444,-773.24055398,0.00024998,2]
[332642769,1721403034456,-601.16894,0.00024999,2]
[332642770,1721403034469,-24419.0,0.00025,5]
[332642771,1721403034479,-169513.13031345,0.00025,5]
[332642772,1721403034492,-788.78949128,0.00025,5]
[332642773,1721403034554,-413.21120921,0.00014899,2]
[332642774,1721403034564,-155.0,0.00016358,2]
[332642775,1721403034574,-58488.65938836,0.00025,5]
[332642776,1721403034585,-2650.29061607,0.00025,5]
[332642784,1721403038277,-155.11912756,0.00016855,2]
[332642785,1721403038287,-1201.0,0.00020489,2]
[332642786,1721403038296,-1623.15676785,0.00025,5]
[332642787,1721403038310,-403264.0468051,0.00025,5]
[332642788,1721403038320,-27126.56582042,0.00025,30]
[332642789,1721403038329,-700.0,0.00025,5]
[332642790,1721403038339,-12049.51077309,0.00025,2]
[332642791,1721403038348,-546.85167006,0.00025,2]
[332642792,1721403038358,-517.0,0.00025,2]
[332642793,1721403038367,-400.0,0.00025,2]
[332642794,1721403038377,-24675.27488665,0.00025,2]
[332642795,1721403038387,-258.0,0.00025,2]
[332642796,1721403038396,-252.007664,0.00025,2]
[332642797,1721403038405,-7192.0074583,0.00025008,2]
[332642798,1721403038415,-151.42136548,0.00025028,2]
[332642799,1721403038424,-493.67,0.00025062,2]
[332642800,1721403038435,-152.319699,0.000251,2]
[332642801,1721403038444,-600.0,0.00025147,2]
[332642802,1721403038455,-1000.0,0.00025205,2]
[332642803,1721403038468,-160.83864897,0.00025232,2]
[332642804,1721403038478,-156.0973475,0.00025243,2]
[332642805,1721403038488,-155.27534177,0.00025314,2]
[332642806,1721403038497,-152.11679399,0.00025359,2]
[332642807,1721403038508,-152.61344492,0.00025362,2]
[332642808,1721403038519,-160.83864897,0.00025371,2]
[332642809,1721403038528,-152.61344492,0.00025381,2]
[332642810,1721403038539,-155.27534177,0.000255,2]
[332642811,1721403038549,-153.22167699,0.00025525,2]
[332642812,1721403038558,-1000.0,0.00025551,2]
[332642813,1721403038567,-174.289716,0.00025562,2]
[332642814,1721403038577,-32731.0,0.00025779,2]
[332642815,1721403038587,-153.22167699,0.00025852,2]